[Event "Titled Tuesday Blitz April 19 Late 2022"]
[White "Sernecki, Franciszek"]
[Black "Ivanisevic, Ivan"]
[WhiteFideId "1169297"]
[BlackFideId "912417"]
[WhiteElo "2165"]
[BlackElo "2495"]
[Result "0-1"]
[Round "09"]
[TimeControl "180+1"]
[Date "2022.04.19"]
[WhiteClock "0:00:02"]
[BlackClock "0:00:07"]

1. d4 {[%clk 0:03:00]}  d5 {[%clk 0:03:00]} 2. c4 {[%clk 0:03:00]}  e6 {[%clk 0:03:00]} 3. Nf3 {[%clk 0:02:59]}  Nf6 {[%clk 0:03:00]} 4. Nc3 {[%clk 0:02:58]}  Nbd7 {[%clk 0:03:00]} 5. e3 {[%clk 0:02:57]}  a6 {[%clk 0:02:59]} 6. b3 {[%clk 0:02:53]}  b6 {[%clk 0:02:57]} 7. Bb2 {[%clk 0:02:51]}  Bb7 {[%clk 0:02:57]} 8. Bd3 {[%clk 0:02:51]}  Bd6 {[%clk 0:02:58]} 9. O-O {[%clk 0:02:51]}  O-O {[%clk 0:02:57]} 10. a4 {[%clk 0:02:51]}  Ne4 {[%clk 0:02:52]} 11. a5 {[%clk 0:02:50]}  f5 {[%clk 0:02:51]} 12. axb6 {[%clk 0:02:49]}  cxb6 {[%clk 0:02:51]} 13. cxd5 {[%clk 0:02:38]}  exd5 {[%clk 0:02:43]} 14. Ne2 {[%clk 0:02:37]}  Qe7 {[%clk 0:02:36]} 15. Ng3 {[%clk 0:02:14]}  b5 {[%clk 0:02:33]} 16. Qe2 {[%clk 0:02:08]}  Rae8 {[%clk 0:02:30]} 17. Rac1 {[%clk 0:02:00]}  f4 {[%clk 0:02:17]} 18. exf4 {[%clk 0:01:45]}  Rxf4 {[%clk 0:02:17]} 19. Rce1 {[%clk 0:01:09]}  Qf8 {[%clk 0:01:55]} 20. Bxe4 {[%clk 0:01:03]}  dxe4 {[%clk 0:01:54]} 21. Ne5 {[%clk 0:01:02]}  Nxe5 {[%clk 0:01:50]} 22. dxe5 {[%clk 0:01:02]}  Bc5 {[%clk 0:01:50]} 23. Nh5 {[%clk 0:00:45]}  Rf7 {[%clk 0:01:38]} 24. Rc1 {[%clk 0:00:14]}  Bb6 {[%clk 0:01:29]} 25. Rc3 {[%clk 0:00:12]}  Re6 {[%clk 0:01:25]} 26. Rg3 {[%clk 0:00:11]}  h6 {[%clk 0:00:45]} 27. Nf6+ {[%clk 0:00:08]}  Kh8 {[%clk 0:00:43]} 28. Ng4 {[%clk 0:00:07]}  Rf4 {[%clk 0:00:42]} 29. Ne3 {[%clk 0:00:07]}  Qf7 {[%clk 0:00:40]} 30. Qd2 {[%clk 0:00:05]}  h5 {[%clk 0:00:34]} 31. Rc1 {[%clk 0:00:05]}  Kh7 {[%clk 0:00:33]} 32. Rh3 {[%clk 0:00:05]}  h4 {[%clk 0:00:25]} 33. Qe2 {[%clk 0:00:06]}  Rg6 {[%clk 0:00:23]} 34. g3 {[%clk 0:00:06]}  Qe6 {[%clk 0:00:20]} 35. Kg2 {[%clk 0:00:04]}  Kg8 {[%clk 0:00:17]} 36. Qh5 {[%clk 0:00:03]}  Rh6 {[%clk 0:00:15]} 37. Qg5 {[%clk 0:00:02]}  Rf3 {[%clk 0:00:12]} 38. Rxh4 {[%clk 0:00:02]}  Bxe3 {[%clk 0:00:11]} 39. fxe3 {[%clk 0:00:02]}  Rxh4 {[%clk 0:00:09]} 40. Qxh4 {[%clk 0:00:03]}  Qf5 {[%clk 0:00:08]} 41. Qd8+ {[%clk 0:00:03]}  Kh7 {[%clk 0:00:08]} 42. Qh4+ {[%clk 0:00:04]}  Kg6 {[%clk 0:00:08]} 43. Rc2 {[%clk 0:00:04]}  Rxe3 {[%clk 0:00:07]} 44. Qf4 {[%clk 0:00:03]}  Qxf4 {[%clk 0:00:06]} 45. gxf4 {[%clk 0:00:04]}  Rxb3 {[%clk 0:00:06]} 46. Kf2 {[%clk 0:00:03]}  e3+ {[%clk 0:00:06]} 47. Ke1 {[%clk 0:00:04]}  Kf5 {[%clk 0:00:06]} 48. Rc7 {[%clk 0:00:02]}  Bf3 {[%clk 0:00:07]} 49. Rf7+ {[%clk 0:00:02]}  Ke4 {[%clk 0:00:07]} 50. e6 {[%clk 0:00:02]}  Rxb2 {[%clk 0:00:07]} 51. e7 {[%clk 0:00:02]}  Rb1# {[%clk 0:00:07]} 0-1


[Site "https://www.chess.com"]

[Event "Titled Tuesday Blitz April 19 Late 2022"]
[White "Sowa, Ryan"]
[Black "Urazayev, Arystanbek"]
[WhiteFideId "30901693"]
[BlackFideId "13709810"]
[WhiteElo "2632"]
[BlackElo "2422"]
[Result "0-1"]
[Round "09"]
[TimeControl "180+1"]
[Date "2022.04.19"]
[WhiteClock "0:01:17"]
[BlackClock "0:01:16"]

1. Nf3 {[%clk 0:03:00]}  Nf6 {[%clk 0:02:59]} 2. c4 {[%clk 0:02:59]}  g6 {[%clk 0:03:00]} 3. Nc3 {[%clk 0:02:59]}  Bg7 {[%clk 0:03:00]} 4. e4 {[%clk 0:02:59]}  d6 {[%clk 0:03:01]} 5. d4 {[%clk 0:03:00]}  O-O {[%clk 0:03:01]} 6. Be2 {[%clk 0:03:01]}  Bg4 {[%clk 0:03:01]} 7. O-O {[%clk 0:03:01]}  Nfd7 {[%clk 0:03:00]} 8. Be3 {[%clk 0:03:02]}  Nc6 {[%clk 0:02:58]} 9. Qd2 {[%clk 0:03:00]}  Bxf3 {[%clk 0:02:55]} 10. Bxf3 {[%clk 0:02:59]}  e5 {[%clk 0:02:55]} 11. d5 {[%clk 0:02:58]}  Nd4 {[%clk 0:02:56]} 12. Bd1 {[%clk 0:02:59]}  f5 {[%clk 0:02:47]} 13. exf5 {[%clk 0:02:57]}  Nxf5 {[%clk 0:02:40]} 14. Bg5 {[%clk 0:02:56]}  Bf6 {[%clk 0:02:37]} 15. Bxf6 {[%clk 0:02:56]}  Qxf6 {[%clk 0:02:35]} 16. Ne4 {[%clk 0:02:55]}  Qh4 {[%clk 0:02:35]} 17. f3 {[%clk 0:02:43]}  Nd4 {[%clk 0:02:21]} 18. Qg5 {[%clk 0:02:33]}  Qxg5 {[%clk 0:02:17]} 19. Nxg5 {[%clk 0:02:34]}  Nc5 {[%clk 0:02:16]} 20. Ne4 {[%clk 0:02:22]}  Nxe4 {[%clk 0:02:10]} 21. fxe4 {[%clk 0:02:23]}  Rxf1+ {[%clk 0:02:10]} 22. Kxf1 {[%clk 0:02:23]}  Rf8+ {[%clk 0:02:11]} 23. Kg1 {[%clk 0:02:10]}  Rf4 {[%clk 0:02:09]} 24. Rc1 {[%clk 0:02:10]}  Rxe4 {[%clk 0:02:04]} 25. c5 {[%clk 0:02:10]}  dxc5 {[%clk 0:02:02]} 26. Kf2 {[%clk 0:02:06]}  Rf4+ {[%clk 0:02:00]} 27. Ke1 {[%clk 0:02:01]}  b6 {[%clk 0:01:59]} 28. b4 {[%clk 0:02:01]}  c4 {[%clk 0:01:25]} 29. g3 {[%clk 0:01:54]}  Re4+ {[%clk 0:01:25]} 30. Kf2 {[%clk 0:01:47]}  b5 {[%clk 0:01:23]} 31. a4 {[%clk 0:01:41]}  a6 {[%clk 0:01:24]} 32. axb5 {[%clk 0:01:41]}  axb5 {[%clk 0:01:25]} 33. Ra1 {[%clk 0:01:41]}  c3 {[%clk 0:01:19]} 34. Ra7 {[%clk 0:01:32]}  c2 {[%clk 0:01:14]} 35. Bxc2 {[%clk 0:01:32]}  Re2+ {[%clk 0:01:14]} 36. Kf1 {[%clk 0:01:19]}  Rxc2 {[%clk 0:01:15]} 37. d6 {[%clk 0:01:17]}  cxd6 {[%clk 0:01:14]} 38. Rg7+ {[%clk 0:01:18]}  Kxg7 {[%clk 0:01:14]} 39. Kg1 {[%clk 0:01:17]}  e4 {[%clk 0:01:15]} 40. h3 {[%clk 0:01:17]}  e3 {[%clk 0:01:16]} 41. Kf1 {[%clk 0:01:18]}  Nf3 {[%clk 0:01:15]} 42. g4 {[%clk 0:01:17]}  Rf2# {[%clk 0:01:16]} 0-1


[Site "https://www.chess.com"]

[Event "Titled Tuesday Blitz April 19 Late 2022"]
[White "Spata, German"]
[Black "Petrovic, Aleksa"]
[WhiteFideId "113026"]
[BlackFideId "967629"]
[WhiteElo "2238"]
[BlackElo "2198"]
[Result "0-1"]
[Round "09"]
[TimeControl "180+1"]
[Date "2022.04.19"]
[WhiteClock "0:00:03"]
[BlackClock "0:00:26"]

1. d3 {[%clk 0:02:57]}  d5 {[%clk 0:02:55]} 2. g3 {[%clk 0:02:55]}  Bg4 {[%clk 0:02:54]} 3. h3 {[%clk 0:02:53]}  Bh5 {[%clk 0:02:53]} 4. Bg2 {[%clk 0:02:54]}  Nf6 {[%clk 0:02:52]} 5. Nf3 {[%clk 0:02:53]}  Nbd7 {[%clk 0:02:50]} 6. O-O {[%clk 0:02:50]}  c6 {[%clk 0:02:48]} 7. c4 {[%clk 0:02:50]}  e6 {[%clk 0:02:40]} 8. cxd5 {[%clk 0:02:50]}  cxd5 {[%clk 0:02:39]} 9. Bg5 {[%clk 0:02:50]}  Be7 {[%clk 0:02:38]} 10. Qb3 {[%clk 0:02:50]}  Nc5 {[%clk 0:02:35]} 11. Qb5+ {[%clk 0:02:50]}  Qd7 {[%clk 0:02:34]} 12. Qxd7+ {[%clk 0:02:50]}  Nfxd7 {[%clk 0:02:31]} 13. Bxe7 {[%clk 0:02:46]}  Bxf3 {[%clk 0:02:30]} 14. Bxc5 {[%clk 0:02:31]}  Bxg2 {[%clk 0:02:30]} 15. Kxg2 {[%clk 0:02:24]}  Nxc5 {[%clk 0:02:30]} 16. Rc1 {[%clk 0:02:25]}  Na6 {[%clk 0:02:27]} 17. Nc3 {[%clk 0:02:18]}  Kd7 {[%clk 0:02:27]} 18. Nb5 {[%clk 0:02:12]}  Rhc8 {[%clk 0:02:17]} 19. Rc3 {[%clk 0:01:59]}  Nc7 {[%clk 0:01:58]} 20. Nxc7 {[%clk 0:01:42]}  Rxc7 {[%clk 0:01:58]} 21. Rxc7+ {[%clk 0:01:42]}  Kxc7 {[%clk 0:01:59]} 22. Rc1+ {[%clk 0:01:42]}  Kd7 {[%clk 0:01:58]} 23. Kf3 {[%clk 0:01:40]}  Rc8 {[%clk 0:01:58]} 24. Rxc8 {[%clk 0:01:39]}  Kxc8 {[%clk 0:01:58]} 25. Kf4 {[%clk 0:01:39]}  Kd7 {[%clk 0:01:59]} 26. g4 {[%clk 0:01:38]}  Kd6 {[%clk 0:01:57]} 27. d4 {[%clk 0:01:38]}  Ke7 {[%clk 0:01:43]} 28. g5 {[%clk 0:01:37]}  f6 {[%clk 0:01:23]} 29. h4 {[%clk 0:01:37]}  Kf7 {[%clk 0:01:19]} 30. gxf6 {[%clk 0:01:20]}  gxf6 {[%clk 0:01:17]} 31. f3 {[%clk 0:01:16]}  h5 {[%clk 0:01:07]} 32. e4 {[%clk 0:01:12]}  dxe4 {[%clk 0:00:56]} 33. fxe4 {[%clk 0:01:08]}  Ke7 {[%clk 0:00:53]} 34. e5 {[%clk 0:00:33]}  Kf7 {[%clk 0:00:52]} 35. a4 {[%clk 0:00:17]}  a5 {[%clk 0:00:50]} 36. b3 {[%clk 0:00:12]}  b6 {[%clk 0:00:50]} 37. exf6 {[%clk 0:00:10]}  Kxf6 {[%clk 0:00:51]} 38. Ke4 {[%clk 0:00:10]}  Kf7 {[%clk 0:00:45]} 39. Ke5 {[%clk 0:00:06]}  Ke7 {[%clk 0:00:45]} 40. Ke4 {[%clk 0:00:04]}  Kd6 {[%clk 0:00:44]} 41. Kf4 {[%clk 0:00:04]}  Kd5 {[%clk 0:00:36]} 42. Kg5 {[%clk 0:00:04]}  Kxd4 {[%clk 0:00:36]} 43. Kxh5 {[%clk 0:00:05]}  e5 {[%clk 0:00:36]} 44. Kg4 {[%clk 0:00:04]}  e4 {[%clk 0:00:36]} 45. h5 {[%clk 0:00:05]}  e3 {[%clk 0:00:33]} 46. h6 {[%clk 0:00:05]}  e2 {[%clk 0:00:33]} 47. h7 {[%clk 0:00:05]}  e1=Q {[%clk 0:00:33]} 48. h8=Q+ {[%clk 0:00:05]}  Kc5 {[%clk 0:00:33]} 49. Qb2 {[%clk 0:00:04]}  Qg1+ {[%clk 0:00:30]} 50. Kf3 {[%clk 0:00:03]}  Qd4 {[%clk 0:00:28]} 51. Qc2+ {[%clk 0:00:02]}  Kb4 {[%clk 0:00:28]} 52. Ke2 {[%clk 0:00:03]}  Qc3 {[%clk 0:00:26]} 0-1


[Site "https://www.chess.com"]

[Event "Titled Tuesday Blitz April 19 Late 2022"]
[White "Timofeev, Artyom"]
[Black "Esipenko, Andrey"]
[WhiteFideId "4140419"]
[BlackFideId "24175439"]
[WhiteElo "2594"]
[BlackElo "2617"]
[Result "0-1"]
[Round "09"]
[TimeControl "180+1"]
[Date "2022.04.19"]
[WhiteClock "0:00:04"]
[BlackClock "0:00:07"]

1. e4 {[%clk 0:03:00]}  e5 {[%clk 0:02:51]} 2. Nf3 {[%clk 0:03:00]}  Nc6 {[%clk 0:02:51]} 3. Nc3 {[%clk 0:02:59]}  Bb4 {[%clk 0:02:43]} 4. Bc4 {[%clk 0:02:50]}  d6 {[%clk 0:02:41]} 5. d3 {[%clk 0:02:49]}  Be6 {[%clk 0:02:25]} 6. Bb5 {[%clk 0:02:40]}  Ne7 {[%clk 0:02:20]} 7. Ng5 {[%clk 0:02:32]}  a6 {[%clk 0:02:03]} 8. Ba4 {[%clk 0:02:28]}  b5 {[%clk 0:01:55]} 9. Nxe6 {[%clk 0:02:16]}  fxe6 {[%clk 0:01:56]} 10. Bb3 {[%clk 0:02:16]}  Nd4 {[%clk 0:01:57]} 11. O-O {[%clk 0:02:16]}  O-O {[%clk 0:01:55]} 12. Be3 {[%clk 0:02:14]}  Nxb3 {[%clk 0:01:41]} 13. axb3 {[%clk 0:02:14]}  Nc6 {[%clk 0:01:41]} 14. Ne2 {[%clk 0:02:12]}  Bc5 {[%clk 0:01:39]} 15. Qd2 {[%clk 0:02:02]}  Qe7 {[%clk 0:01:33]} 16. c3 {[%clk 0:01:58]}  d5 {[%clk 0:01:03]} 17. b4 {[%clk 0:01:46]}  Bd6 {[%clk 0:01:02]} 18. Bg5 {[%clk 0:01:30]}  Qf7 {[%clk 0:01:02]} 19. Bh4 {[%clk 0:01:30]}  a5 {[%clk 0:00:59]} 20. bxa5 {[%clk 0:01:27]}  Nxa5 {[%clk 0:01:00]} 21. Qc2 {[%clk 0:01:24]}  c5 {[%clk 0:01:00]} 22. Bg3 {[%clk 0:01:24]}  c4 {[%clk 0:00:56]} 23. Rad1 {[%clk 0:01:23]}  Rad8 {[%clk 0:00:52]} 24. d4 {[%clk 0:01:14]}  Nc6 {[%clk 0:00:51]} 25. h3 {[%clk 0:00:45]}  Qg6 {[%clk 0:00:51]} 26. dxe5 {[%clk 0:00:41]}  Bxe5 {[%clk 0:00:51]} 27. f4 {[%clk 0:00:39]}  Bd6 {[%clk 0:00:43]} 28. f5 {[%clk 0:00:39]}  exf5 {[%clk 0:00:42]} 29. exf5 {[%clk 0:00:39]}  Qf7 {[%clk 0:00:41]} 30. Bxd6 {[%clk 0:00:38]}  Rxd6 {[%clk 0:00:42]} 31. Nd4 {[%clk 0:00:30]}  Ne5 {[%clk 0:00:42]} 32. Rde1 {[%clk 0:00:23]}  Nd3 {[%clk 0:00:39]} 33. Re3 {[%clk 0:00:23]}  b4 {[%clk 0:00:35]} 34. Qe2 {[%clk 0:00:23]}  bxc3 {[%clk 0:00:34]} 35. bxc3 {[%clk 0:00:23]}  Qf6 {[%clk 0:00:34]} 36. Kh2 {[%clk 0:00:23]}  h6 {[%clk 0:00:34]} 37. Kh1 {[%clk 0:00:22]}  Rb6 {[%clk 0:00:33]} 38. Qg4 {[%clk 0:00:19]}  Qg5 {[%clk 0:00:29]} 39. Qxg5 {[%clk 0:00:17]}  hxg5 {[%clk 0:00:30]} 40. Rg3 {[%clk 0:00:18]}  Ra6 {[%clk 0:00:28]} 41. Rxg5 {[%clk 0:00:17]}  Ra3 {[%clk 0:00:28]} 42. f6 {[%clk 0:00:17]}  Rf7 {[%clk 0:00:28]} 43. Ne6 {[%clk 0:00:17]}  Ra6 {[%clk 0:00:24]} 44. Nxg7 {[%clk 0:00:16]}  Kf8 {[%clk 0:00:21]} 45. Rxd5 {[%clk 0:00:16]}  Rfxf6 {[%clk 0:00:19]} 46. Nf5 {[%clk 0:00:15]}  Kf7 {[%clk 0:00:16]} 47. Rd4 {[%clk 0:00:14]}  Ra2 {[%clk 0:00:16]} 48. Kg1 {[%clk 0:00:13]}  Ne5 {[%clk 0:00:14]} 49. Re4 {[%clk 0:00:12]}  Ra5 {[%clk 0:00:10]} 50. g4 {[%clk 0:00:10]}  Kg6 {[%clk 0:00:10]} 51. Nh4+ {[%clk 0:00:10]}  Kg5 {[%clk 0:00:10]} 52. Rxf6 {[%clk 0:00:09]}  Kxf6 {[%clk 0:00:10]} 53. Nf5 {[%clk 0:00:09]}  Ra3 {[%clk 0:00:11]} 54. Ne3 {[%clk 0:00:06]}  Ra2 {[%clk 0:00:09]} 55. Nxc4 {[%clk 0:00:05]}  Nf3+ {[%clk 0:00:09]} 56. Kf1 {[%clk 0:00:05]}  Kg5 {[%clk 0:00:09]} 57. Re3 {[%clk 0:00:03]}  Kf4 {[%clk 0:00:08]} 58. Rd3 {[%clk 0:00:03]}  Kg3 {[%clk 0:00:08]} 59. Nd2 {[%clk 0:00:04]}  Ra1+ {[%clk 0:00:07]} 60. Ke2 {[%clk 0:00:04]}  Re1# {[%clk 0:00:07]} 0-1


[Site "https://www.chess.com"]

[Event "Titled Tuesday Blitz April 19 Late 2022"]
[White "Tregubov, Pavel V."]
[Black "Petrovskyi, Vadym"]
[WhiteFideId "4115341"]
[BlackFideId "14165210"]
[WhiteElo "2341"]
[BlackElo "2400"]
[Result "0-1"]
[Round "09"]
[TimeControl "180+1"]
[Date "2022.04.19"]
[WhiteClock "0:00:04"]
[BlackClock "0:01:12"]

1. e4 {[%clk 0:02:56]}  c5 {[%clk 0:03:00]} 2. Nf3 {[%clk 0:02:56]}  d6 {[%clk 0:02:59]} 3. Bb5+ {[%clk 0:02:55]}  Bd7 {[%clk 0:02:59]} 4. Bxd7+ {[%clk 0:02:55]}  Qxd7 {[%clk 0:03:00]} 5. O-O {[%clk 0:02:55]}  Nf6 {[%clk 0:03:01]} 6. Re1 {[%clk 0:02:55]}  Nc6 {[%clk 0:03:00]} 7. c3 {[%clk 0:02:55]}  e6 {[%clk 0:03:01]} 8. d4 {[%clk 0:02:56]}  cxd4 {[%clk 0:03:01]} 9. cxd4 {[%clk 0:02:55]}  d5 {[%clk 0:03:02]} 10. e5 {[%clk 0:02:54]}  Ne4 {[%clk 0:03:03]} 11. Nbd2 {[%clk 0:02:54]}  Nxd2 {[%clk 0:03:03]} 12. Bxd2 {[%clk 0:02:55]}  Be7 {[%clk 0:03:04]} 13. Rc1 {[%clk 0:02:49]}  O-O {[%clk 0:03:04]} 14. h4 {[%clk 0:02:47]}  Rfc8 {[%clk 0:03:04]} 15. Bg5 {[%clk 0:02:46]}  h6 {[%clk 0:03:01]} 16. Bxe7 {[%clk 0:02:44]}  Nxe7 {[%clk 0:03:02]} 17. Qb3 {[%clk 0:02:42]}  h5 {[%clk 0:02:52]} 18. Qa3 {[%clk 0:02:33]}  b6 {[%clk 0:02:46]} 19. Qd6 {[%clk 0:02:20]}  Qe8 {[%clk 0:02:45]} 20. Qb4 {[%clk 0:01:53]}  Nf5 {[%clk 0:02:43]} 21. a4 {[%clk 0:01:49]}  Rc6 {[%clk 0:02:34]} 22. Rc3 {[%clk 0:01:33]}  Rxc3 {[%clk 0:02:29]} 23. bxc3 {[%clk 0:01:32]}  Rc8 {[%clk 0:02:28]} 24. a5 {[%clk 0:01:30]}  Rc4 {[%clk 0:02:25]} 25. Qa3 {[%clk 0:01:29]}  b5 {[%clk 0:02:24]} 26. Rb1 {[%clk 0:01:18]}  a6 {[%clk 0:02:22]} 27. Rb4 {[%clk 0:01:18]}  Rc6 {[%clk 0:02:18]} 28. Rb3 {[%clk 0:01:13]}  Qc8 {[%clk 0:02:17]} 29. Ne1 {[%clk 0:01:09]}  Nxh4 {[%clk 0:02:10]} 30. Nd3 {[%clk 0:01:09]}  Nf5 {[%clk 0:02:06]} 31. Nc5 {[%clk 0:01:08]}  h4 {[%clk 0:02:03]} 32. Qc1 {[%clk 0:01:05]}  Rxc5 {[%clk 0:01:54]} 33. dxc5 {[%clk 0:01:04]}  Qxc5 {[%clk 0:01:55]} 34. Qf4 {[%clk 0:00:58]}  Qc7 {[%clk 0:01:45]} 35. Ra3 {[%clk 0:00:54]}  f6 {[%clk 0:01:37]} 36. Ra1 {[%clk 0:00:26]}  fxe5 {[%clk 0:01:38]} 37. Qd2 {[%clk 0:00:26]}  e4 {[%clk 0:01:36]} 38. Re1 {[%clk 0:00:21]}  Qxa5 {[%clk 0:01:34]} 39. f3 {[%clk 0:00:18]}  e3 {[%clk 0:01:32]} 40. Qd3 {[%clk 0:00:17]}  d4 {[%clk 0:01:19]} 41. Rc1 {[%clk 0:00:17]}  Qa3 {[%clk 0:01:19]} 42. Rc2 {[%clk 0:00:15]}  Qb3 {[%clk 0:01:14]} 43. Qe4 {[%clk 0:00:04]}  dxc3 {[%clk 0:01:12]} 0-1


[Site "https://www.chess.com"]

[Event "Titled Tuesday Blitz April 19 Late 2022"]
[White "Vujic, Mihailo"]
[Black "Solon, Nathan"]
[WhiteFideId "918873"]
[BlackFideId "2017229"]
[WhiteElo "2256"]
[BlackElo "2559"]
[Result "1/2-1/2"]
[Round "09"]
[TimeControl "180+1"]
[Date "2022.04.19"]
[WhiteClock "0:00:07"]
[BlackClock "0:00:17"]

1. e4 {[%clk 0:02:58]}  c5 {[%clk 0:02:59]} 2. c3 {[%clk 0:02:58]}  Nf6 {[%clk 0:02:59]} 3. e5 {[%clk 0:02:58]}  Nd5 {[%clk 0:02:59]} 4. Nf3 {[%clk 0:02:59]}  d6 {[%clk 0:02:59]} 5. d4 {[%clk 0:02:59]}  cxd4 {[%clk 0:02:59]} 6. cxd4 {[%clk 0:03:00]}  Nc6 {[%clk 0:02:57]} 7. Bc4 {[%clk 0:02:59]}  Nb6 {[%clk 0:02:56]} 8. Bb3 {[%clk 0:02:58]}  dxe5 {[%clk 0:02:56]} 9. d5 {[%clk 0:02:59]}  Na5 {[%clk 0:02:55]} 10. Nc3 {[%clk 0:02:59]}  Nxb3 {[%clk 0:02:55]} 11. Qxb3 {[%clk 0:03:00]}  e6 {[%clk 0:02:54]} 12. Nxe5 {[%clk 0:02:43]}  exd5 {[%clk 0:02:54]} 13. Be3 {[%clk 0:02:43]}  Bd6 {[%clk 0:02:47]} 14. Qb5+ {[%clk 0:02:43]}  Kf8 {[%clk 0:02:45]} 15. Nf3 {[%clk 0:02:43]}  Be6 {[%clk 0:02:38]} 16. O-O {[%clk 0:02:40]}  Qd7 {[%clk 0:02:35]} 17. Bxb6 {[%clk 0:02:37]}  axb6 {[%clk 0:02:35]} 18. Qxb6 {[%clk 0:02:33]}  h5 {[%clk 0:02:24]} 19. Rad1 {[%clk 0:02:29]}  Rh6 {[%clk 0:02:22]} 20. Qd4 {[%clk 0:02:04]}  Rd8 {[%clk 0:02:15]} 21. Ne5 {[%clk 0:01:59]}  Qc7 {[%clk 0:02:09]} 22. Nb5 {[%clk 0:01:46]}  Bxe5 {[%clk 0:02:02]} 23. Nxc7 {[%clk 0:01:45]}  Bxd4 {[%clk 0:02:01]} 24. Rxd4 {[%clk 0:01:43]}  Rd7 {[%clk 0:01:43]} 25. Nb5 {[%clk 0:01:38]}  Rg6 {[%clk 0:01:26]} 26. Rfd1 {[%clk 0:01:32]}  Rg4 {[%clk 0:01:26]} 27. Nc3 {[%clk 0:01:29]}  Rxd4 {[%clk 0:01:19]} 28. Rxd4 {[%clk 0:01:30]}  Ke7 {[%clk 0:01:19]} 29. f4 {[%clk 0:01:30]}  g6 {[%clk 0:01:14]} 30. Kf2 {[%clk 0:01:30]}  Kd6 {[%clk 0:01:14]} 31. Ke3 {[%clk 0:01:29]}  Kc5 {[%clk 0:01:14]} 32. b4+ {[%clk 0:01:27]}  Kd6 {[%clk 0:01:10]} 33. Ne4+ {[%clk 0:01:14]}  Ke7 {[%clk 0:01:09]} 34. Nc5 {[%clk 0:01:01]}  Rc7 {[%clk 0:01:09]} 35. a4 {[%clk 0:00:51]}  b6 {[%clk 0:01:06]} 36. Nb3 {[%clk 0:00:35]}  Rc3+ {[%clk 0:00:57]} 37. Rd3 {[%clk 0:00:35]}  Rc4 {[%clk 0:00:57]} 38. Nd4 {[%clk 0:00:32]}  Bd7 {[%clk 0:00:50]} 39. a5 {[%clk 0:00:19]}  Rxb4 {[%clk 0:00:48]} 40. axb6 {[%clk 0:00:17]}  Rxb6 {[%clk 0:00:49]} 41. Nf3 {[%clk 0:00:16]}  Kd6 {[%clk 0:00:45]} 42. Ne5 {[%clk 0:00:15]}  Ke6 {[%clk 0:00:31]} 43. Nxd7 {[%clk 0:00:12]}  Kxd7 {[%clk 0:00:32]} 44. Rxd5+ {[%clk 0:00:12]}  Ke6 {[%clk 0:00:33]} 45. Rd2 {[%clk 0:00:12]}  Rb3+ {[%clk 0:00:32]} 46. Kf2 {[%clk 0:00:10]}  Kf5 {[%clk 0:00:31]} 47. g3 {[%clk 0:00:10]}  Kg4 {[%clk 0:00:30]} 48. Kg2 {[%clk 0:00:10]}  Kf5 {[%clk 0:00:28]} 49. h3 {[%clk 0:00:09]}  Ra3 {[%clk 0:00:22]} 50. Re2 {[%clk 0:00:09]}  f6 {[%clk 0:00:21]} 51. Rc2 {[%clk 0:00:07]}  Ke4 {[%clk 0:00:20]} 52. Rc4+ {[%clk 0:00:06]}  Kf5 {[%clk 0:00:20]} 53. Rc5+ {[%clk 0:00:06]}  Ke6 {[%clk 0:00:21]} 54. Rc6+ {[%clk 0:00:06]}  Kf5 {[%clk 0:00:21]} 55. Rc2 {[%clk 0:00:06]}  Rb3 {[%clk 0:00:21]} 56. Rc5+ {[%clk 0:00:06]}  Ke6 {[%clk 0:00:21]} 57. Rc6+ {[%clk 0:00:06]}  Kf5 {[%clk 0:00:21]} 58. Rc5+ {[%clk 0:00:06]}  Ke4 {[%clk 0:00:22]} 59. Rc4+ {[%clk 0:00:06]}  Kd5 {[%clk 0:00:22]} 60. Rc2 {[%clk 0:00:06]}  Rd3 {[%clk 0:00:22]} 61. Re2 {[%clk 0:00:06]}  f5 {[%clk 0:00:17]} 62. Kf2 {[%clk 0:00:06]}  Kd6 {[%clk 0:00:16]} 63. Re3 {[%clk 0:00:06]}  Rxe3 {[%clk 0:00:15]} 64. Kxe3 {[%clk 0:00:06]}  Kc5 {[%clk 0:00:16]} 65. Kd3 {[%clk 0:00:06]}  Kd5 {[%clk 0:00:17]} 66. h4 {[%clk 0:00:06]}  Kc5 {[%clk 0:00:16]} 67. Kc3 {[%clk 0:00:07]}  Kd5 {[%clk 0:00:17]} 68. Kd3 {[%clk 0:00:07]}  Kc5 {[%clk 0:00:17]} 69. Kc3 {[%clk 0:00:07]}  Kd5 {[%clk 0:00:17]} 70. Kd3 {[%clk 0:00:07]} 1/2-1/2


[Site "https://www.chess.com"]

[Event "Titled Tuesday Blitz April 19 Late 2022"]
[White "Wu, Derek"]
[Black "Avramidou, Anastasia"]
[WhiteFideId "30914558"]
[BlackFideId "4239873"]
[WhiteElo "2657"]
[BlackElo "2515"]
[Result "0-1"]
[Round "09"]
[TimeControl "180+1"]
[Date "2022.04.19"]
[WhiteClock "0:00:19"]
[BlackClock "0:00:14"]

1. Nf3 {[%clk 0:02:56]}  Nf6 {[%clk 0:02:59]} 2. d4 {[%clk 0:02:54]}  e6 {[%clk 0:02:59]} 3. c4 {[%clk 0:02:49]}  Bb4+ {[%clk 0:02:57]} 4. Nbd2 {[%clk 0:02:47]}  O-O {[%clk 0:02:56]} 5. a3 {[%clk 0:02:47]}  Be7 {[%clk 0:02:56]} 6. e4 {[%clk 0:02:47]}  d5 {[%clk 0:02:56]} 7. e5 {[%clk 0:02:47]}  Nfd7 {[%clk 0:02:56]} 8. cxd5 {[%clk 0:02:44]}  exd5 {[%clk 0:02:57]} 9. Bd3 {[%clk 0:02:44]}  c5 {[%clk 0:02:57]} 10. O-O {[%clk 0:02:44]}  cxd4 {[%clk 0:02:56]} 11. Nxd4 {[%clk 0:02:38]}  Nxe5 {[%clk 0:02:55]} 12. Bxh7+ {[%clk 0:02:38]}  Kxh7 {[%clk 0:02:54]} 13. Qh5+ {[%clk 0:02:39]}  Kg8 {[%clk 0:02:54]} 14. Qxe5 {[%clk 0:02:39]}  Bf6 {[%clk 0:02:55]} 15. Qf4 {[%clk 0:02:39]}  Nc6 {[%clk 0:02:42]} 16. N2f3 {[%clk 0:02:28]}  Nxd4 {[%clk 0:02:37]} 17. Nxd4 {[%clk 0:02:29]}  Re8 {[%clk 0:02:37]} 18. Nf5 {[%clk 0:02:09]}  Be5 {[%clk 0:01:43]} 19. Qf3 {[%clk 0:01:51]}  Qf6 {[%clk 0:01:41]} 20. Ne3 {[%clk 0:01:50]}  Qxf3 {[%clk 0:01:39]} 21. gxf3 {[%clk 0:01:51]}  Be6 {[%clk 0:01:39]} 22. Ng4 {[%clk 0:01:38]}  Bxg4 {[%clk 0:01:35]} 23. fxg4 {[%clk 0:01:33]}  Rac8 {[%clk 0:01:36]} 24. Rd1 {[%clk 0:01:29]}  d4 {[%clk 0:01:25]} 25. Bd2 {[%clk 0:01:17]}  Rc2 {[%clk 0:01:22]} 26. b4 {[%clk 0:01:07]}  d3 {[%clk 0:01:16]} 27. Rab1 {[%clk 0:01:07]}  Bd4 {[%clk 0:01:10]} 28. Rb3 {[%clk 0:01:05]}  Re2 {[%clk 0:01:10]} 29. Rxd3 {[%clk 0:01:05]}  Bb6 {[%clk 0:01:01]} 30. Be3 {[%clk 0:00:44]}  Bxe3 {[%clk 0:00:59]} 31. Rxe3 {[%clk 0:00:44]}  Rxf2 {[%clk 0:01:00]} 32. Rh3 {[%clk 0:00:30]}  g6 {[%clk 0:00:41]} 33. Rd8+ {[%clk 0:00:27]}  Kg7 {[%clk 0:00:39]} 34. Rd7 {[%clk 0:00:28]}  Rg2+ {[%clk 0:00:23]} 35. Kf1 {[%clk 0:00:25]}  Rcf2+ {[%clk 0:00:22]} 36. Ke1 {[%clk 0:00:24]}  Rb2 {[%clk 0:00:15]} 37. Rf3 {[%clk 0:00:19]}  Rb1+ {[%clk 0:00:14]} 0-1


[Site "https://www.chess.com"]